Workbook

Sheet лист 1
Q1: Приложение № 6
Q2: к постановлению администрации
Q3: города Усолье-Сибирское
Q4: от 15.12.2025 №2331-па
B6: Минимальный объем необходимой валовой выручки, получаемой Концессионером в рамках реализации Концессионного соглашения
B8: В сфере водоснабжения (питьевая вода)
B9: Наименование показателей | C9: Период действия концессионного соглашения | Q9: Общая сумма, тыс.руб. без НДС
B10: Сумма валовой выручки | C10: 2026 | D10: =C10+1 -> 2027 | E10: 2028 | F10: 2029 | G10: 2030 | H10: 2031 | I10: 2032 | J10: 2033 | K10: 2034 | L10: 2035 | M10: 2036 | N10: 2037 | O10: 2038 | P10: 2039 | Q10: =C11+D11+E11+F11+G11+H11+I11+J11+K11+L11+M11+N11+O11+C13+D13+E13+F13+G13+H13+I13+J13+K13+L13+M13+N13+O13+P11 -> 10,433,778.9
C11: ='[1]Расчет прибыли'!D31 -> 245,295.4 | D11: ='[1]Расчет прибыли'!E31 -> 254,492.0 | E11: ='[1]Расчет прибыли'!F31 -> 262,785.8 | F11: ='[1]Расчет прибыли'!G31 -> 271,361.5 | G11: ='[1]Расчет прибыли'!H31 -> 280,229.2 | H11: ='[1]Расчет прибыли'!I31 -> 289,399.5 | I11: ='[1]Расчет прибыли'!J31 -> 298,883.3 | J11: ='[1]Расчет прибыли'!K31 -> 308,691.6 | K11: ='[1]Расчет прибыли'!L31 -> 318,836.3 | L11: ='[1]Расчет прибыли'!M31 -> 329,329.4 | M11: ='[1]Расчет прибыли'!N31 -> 340,183.7 | N11: ='[1]Расчет прибыли'!O31 -> 351,412.3 | O11: ='[1]Расчет прибыли'!P31 -> 363,028.5 | P11: ='[1]Расчет прибыли'!Q31 -> 375,046.7
C12: =P10+1 -> 2040 | D12: =C12+1 -> 2041 | E12: =D12+1 -> 2042 | F12: 2043 | G12: 2044 | H12: 2045 | I12: 2046 | J12: 2047 | K12: 2048 | L12: 2049 | M12: 2050 | N12: =M12+1 -> 2051 | O12: =N12+1 -> 2052 | R12: 10,433,779 | S12: =R12-Q10 -> 0
C13: ='[1]Расчет прибыли'!R31 -> 387,481.4 | D13: ='[1]Расчет прибыли'!S31 -> 400,347.9 | E13: ='[1]Расчет прибыли'!T31 -> 413,662.0 | F13: ='[1]Расчет прибыли'!U31 -> 427,440.1 | G13: ='[1]Расчет прибыли'!V31 -> 441,699.2 | H13: ='[1]Расчет прибыли'!W31 -> 456,457.2 | I13: ='[1]Расчет прибыли'!X31 -> 471,732.4 | J13: ='[1]Расчет прибыли'!Y31 -> 487,543.9 | K13: ='[1]Расчет прибыли'!Z31 -> 503,911.7 | L13: ='[1]Расчет прибыли'!AA31 -> 520,856.4 | M13: ='[1]Расчет прибыли'!AB31 -> 538,399.5 | N13: ='[1]Расчет прибыли'!AC31 -> 556,563.3 | O13: ='[1]Расчет прибыли'!AD31 -> 538,708.7
B14: Изменение к предыдущему году, % | C14: 2023 | D14: =C14+1 -> 2024 | E14: 2025 | F14: 2026 | G14: 2027 | H14: 2028 | I14: 2029 | J14: 2030 | K14: 2031 | L14: 2032 | M14: 2033 | N14: 2034 | O14: 2035
D15: =D11/C11 -> 103.7% | E15: 103.3% | F15: 103.3% | G15: 103.3% | H15: 103.3% | I15: 103.3% | J15: 103.3% | K15: 103.3% | L15: 103.3% | M15: 103.3% | N15: 103.3% | O15: 103.3%
C16: =O14+1 -> 2036 | D16: =C16+1 -> 2037 | E16: =D16+1 -> 2038 | F16: 2039 | G16: 2040 | H16: 2041 | I16: 2042 | J16: 2043 | K16: 2044 | L16: 2045 | M16: 2046 | N16: 2047 | O16: 2048
C18: =O16+1 -> 2049 | D18: =C18+1 -> 2050 | E18: =D18+1 -> 2051 | F18: 2052 | G18: 2053 | H18: 2054 | I18: 2055 | J18: 2056 | K18: 2057
B21: В сфере водоснабжения (техническая вода)
B22: Наименование показателей | C22: Период действия концессионного соглашения | Q22: Общая сумма, тыс.руб. без НДС
B23: Сумма валовой выручки | C23: 2026 | D23: =C23+1 -> 2027 | E23: =D23+1 -> 2028 | F23: =E23+1 -> 2029 | G23: =F23+1 -> 2030 | H23: =G23+1 -> 2031 | I23: =H23+1 -> 2032 | J23: =I23+1 -> 2033 | K23: =J23+1 -> 2034 | L23: =K23+1 -> 2035 | M23: =L23+1 -> 2036 | N23: =M23+1 -> 2037 | O23: =N23+1 -> 2038 | P23: 2039 | Q23: =C24+D24+E24+F24+G24+H24+I24+J24+K24+L24+M24+N24+O24+C26+D26+E26+F26+G26+H26+I26+J26+K26+L26+M26+N26+O26+P24 -> 1,523,346.1
C24: ='[1]Расчет прибыли'!D61 -> 34,360.4 | D24: ='[1]Расчет прибыли'!E61 -> 35,855.1 | E24: ='[1]Расчет прибыли'!F61 -> 37,111.9 | F24: ='[1]Расчет прибыли'!G61 -> 38,415.2 | G24: ='[1]Расчет прибыли'!H61 -> 39,766.8 | H24: ='[1]Расчет прибыли'!I61 -> 41,168.7 | I24: ='[1]Расчет прибыли'!J61 -> 42,622.9 | J24: ='[1]Расчет прибыли'!K61 -> 44,131.3 | K24: ='[1]Расчет прибыли'!L61 -> 45,696.1 | L24: ='[1]Расчет прибыли'!M61 -> 47,319.7 | M24: ='[1]Расчет прибыли'!N61 -> 49,004.1 | N24: ='[1]Расчет прибыли'!O61 -> 50,751.8 | O24: ='[1]Расчет прибыли'!P61 -> 52,565.5 | P24: ='[1]Расчет прибыли'!Q61 -> 54,447.6
C25: =P23+1 -> 2040 | D25: =C25+1 -> 2041 | E25: =D25+1 -> 2042 | F25: =E25+1 -> 2043 | G25: =F25+1 -> 2044 | H25: =G25+1 -> 2045 | I25: =H25+1 -> 2046 | J25: =I25+1 -> 2047 | K25: =J25+1 -> 2048 | L25: =K25+1 -> 2049 | M25: =L25+1 -> 2050 | N25: =M25+1 -> 2051 | O25: =N25+1 -> 2052 | R25: 1,523,346 | S25: =R25-Q23 -> 0
C26: ='[1]Расчет прибыли'!R61 -> 56,400.9 | D26: ='[1]Расчет прибыли'!S61 -> 58,428.3 | E26: ='[1]Расчет прибыли'!T61 -> 60,532.6 | F26: ='[1]Расчет прибыли'!U61 -> 62,717.1 | G26: ='[1]Расчет прибыли'!V61 -> 64,984.8 | H26: ='[1]Расчет прибыли'!W61 -> 67,339.2 | I26: ='[1]Расчет прибыли'!X61 -> 69,783.7 | J26: ='[1]Расчет прибыли'!Y61 -> 72,321.9 | K26: ='[1]Расчет прибыли'!Z61 -> 74,957.8 | L26: ='[1]Расчет прибыли'!AA61 -> 77,695.0 | M26: ='[1]Расчет прибыли'!AB61 -> 80,537.9 | N26: ='[1]Расчет прибыли'!AC61 -> 83,490.6 | O26: ='[1]Расчет прибыли'!AD61 -> 80,939.4
B27: Изменение к предыдущему году, % | C27: 2023 | D27: =C27+1 -> 2024 | E27: =D27+1 -> 2025 | F27: =E27+1 -> 2026 | G27: =F27+1 -> 2027 | H27: =G27+1 -> 2028 | I27: =H27+1 -> 2029 | J27: =I27+1 -> 2030 | K27: =J27+1 -> 2031 | L27: =K27+1 -> 2032 | M27: =L27+1 -> 2033 | N27: =M27+1 -> 2034 | O27: =N27+1 -> 2035
C29: =O27+1 -> 2036 | D29: =C29+1 -> 2037 | E29: =D29+1 -> 2038 | F29: =E29+1 -> 2039 | G29: =F29+1 -> 2040 | H29: =G29+1 -> 2041 | I29: =H29+1 -> 2042 | J29: =I29+1 -> 2043 | K29: =J29+1 -> 2044 | L29: =K29+1 -> 2045 | M29: =L29+1 -> 2046 | N29: =M29+1 -> 2047 | O29: =N29+1 -> 2048
C31: =O29+1 -> 2049 | D31: =C31+1 -> 2050 | E31: =D31+1 -> 2051 | F31: =E31+1 -> 2052 | G31: =F31+1 -> 2053 | H31: =G31+1 -> 2054 | I31: =H31+1 -> 2055 | J31: =I31+1 -> 2056 | K31: =J31+1 -> 2057
B34: В сфере водоотведения
B35: Наименование показателей | C35: Период действия концессионного соглашения | Q35: Общая сумма, тыс.руб. без НДС
B36: Сумма валовой выручки | C36: 2026 | D36: =C36+1 -> 2027 | E36: =D36+1 -> 2028 | F36: =E36+1 -> 2029 | G36: =F36+1 -> 2030 | H36: =G36+1 -> 2031 | I36: =H36+1 -> 2032 | J36: =I36+1 -> 2033 | K36: =J36+1 -> 2034 | L36: =K36+1 -> 2035 | M36: =L36+1 -> 2036 | N36: =M36+1 -> 2037 | O36: =N36+1 -> 2038 | P36: 2039 | Q36: =C37+D37+E37+F37+G37+H37+I37+J37+K37+L37+M37+N37+O37+C39+D39+E39+F39+G39+H39+I39+J39+K39+L39+M39+N39+O39+P37 -> 10,609,919.2
C37: ='[1]Расчет прибыли'!D93 -> 251,091.1 | D37: ='[1]Расчет прибыли'!E93 -> 260,586.4 | E37: ='[1]Расчет прибыли'!F93 -> 268,986.7 | F37: ='[1]Расчет прибыли'!G93 -> 277,671.8 | G37: ='[1]Расчет прибыли'!H93 -> 286,652.1 | H37: ='[1]Расчет прибыли'!I93 -> 295,938.0 | I37: ='[1]Расчет прибыли'!J93 -> 305,540.6 | J37: ='[1]Расчет прибыли'!K93 -> 315,471.2 | K37: ='[1]Расчет прибыли'!L93 -> 325,741.7 | L37: ='[1]Расчет прибыли'!M93 -> 336,364.5 | M37: ='[1]Расчет прибыли'!N93 -> 347,352.2 | N37: ='[1]Расчет прибыли'!O93 -> 358,718.2 | O37: ='[1]Расчет прибыли'!P93 -> 370,476.2 | P37: ='[1]Расчет прибыли'!Q93 -> 382,640.6
C38: =P36+1 -> 2040 | D38: =C38+1 -> 2041 | E38: =D38+1 -> 2042 | F38: =E38+1 -> 2043 | G38: =F38+1 -> 2044 | H38: =G38+1 -> 2045 | I38: =H38+1 -> 2046 | J38: =I38+1 -> 2047 | K38: =J38+1 -> 2048 | L38: =K38+1 -> 2049 | M38: =L38+1 -> 2050 | N38: =M38+1 -> 2051 | O38: =N38+1 -> 2052 | R38: 10,609,919 | S38: =R38-Q36 -> 0
C39: ='[1]Расчет прибыли'!R93 -> 395,226.1 | D39: ='[1]Расчет прибыли'!S93 -> 408,248.3 | E39: ='[1]Расчет прибыли'!T93 -> 421,723.2 | F39: ='[1]Расчет прибыли'!U93 -> 435,667.6 | G39: ='[1]Расчет прибыли'!V93 -> 450,098.5 | H39: ='[1]Расчет прибыли'!W93 -> 465,034.2 | I39: ='[1]Расчет прибыли'!X93 -> 480,493.5 | J39: ='[1]Расчет прибыли'!Y93 -> 496,495.5 | K39: ='[1]Расчет прибыли'!Z93 -> 513,060.8 | L39: ='[1]Расчет прибыли'!AA93 -> 530,210.1 | M39: ='[1]Расчет прибыли'!AB93 -> 547,965.6 | N39: ='[1]Расчет прибыли'!AC93 -> 534,235.5 | O39: ='[1]Расчет прибыли'!AD93 -> 548,229.1
B40: Изменение к предыдущему году, % | C40: 2023 | D40: =C40+1 -> 2024 | E40: =D40+1 -> 2025 | F40: =E40+1 -> 2026 | G40: =F40+1 -> 2027 | H40: =G40+1 -> 2028 | I40: =H40+1 -> 2029 | J40: =I40+1 -> 2030 | K40: =J40+1 -> 2031 | L40: =K40+1 -> 2032 | M40: =L40+1 -> 2033 | N40: =M40+1 -> 2034 | O40: =N40+1 -> 2035
C42: =O40+1 -> 2036 | D42: =C42+1 -> 2037 | E42: =D42+1 -> 2038 | F42: =E42+1 -> 2039 | G42: =F42+1 -> 2040 | H42: =G42+1 -> 2041 | I42: =H42+1 -> 2042 | J42: =I42+1 -> 2043 | K42: =J42+1 -> 2044 | L42: =K42+1 -> 2045 | M42: =L42+1 -> 2046 | N42: =M42+1 -> 2047 | O42: =N42+1 -> 2048
C44: =O42+1 -> 2049 | D44: =C44+1 -> 2050 | E44: =D44+1 -> 2051 | F44: =E44+1 -> 2052 | G44: =F44+1 -> 2053 | H44: =G44+1 -> 2054 | I44: =H44+1 -> 2055 | J44: =I44+1 -> 2056 | K44: =J44+1 -> 2057
B48: Мэр города М.В. Торопкин | R48: =R12+R25+R38 -> 22,567,044
